fUSD/lending_fUSD_20251001
["ID","MTS","AMOUNT","RATE_DAILY","PERIOD"]
[388640483,1759287036850,-150.0,0.00021926,2]
[388640484,1759287036859,-385.0,0.00021931,2]
[388640485,1759287036869,-170.0,0.00022,2]
[388640486,1759287036878,-363.0,0.00022,2]
[388640487,1759287036889,-178.05,0.00022,2]
[388640488,1759287036898,-533.07,0.00022011,2]
[388640489,1759287036908,-514.57,0.00022011,2]
[388640490,1759287036917,-5000.0,0.00022066,2]
[388640491,1759287036926,-208.54269377,0.00022086,2]
[388640492,1759287036936,-231.71,0.00022096,2]
[388640493,1759287036945,-600.0,0.0002211,2]
[388640494,1759287036954,-302.65,0.00022113,2]
[388640495,1759287036963,-1325.16,0.00022163,2]
[388640496,1759287036974,-363.0,0.00022192,7]
[388640497,1759287036985,-166.29,0.00022441,2]
[388640498,1759287036995,-700.0,0.00022446,2]
[388640499,1759287037005,-240.0,0.00022448,2]
[388640500,1759287037017,-2000.0,0.000225,2]
[388640501,1759287037028,-171.61,0.00022511,2]
[388640502,1759287037038,-9999.99,0.00022562,2]
[388640503,1759287037048,-4276.23,0.00022562,2]
[388640504,1759287037057,-150.99,0.00022562,2]
[388640505,1759287037066,-150.99,0.00022562,2]
[388640506,1759287037075,-471.57,0.00022612,30]
[388640507,1759287037084,-150.0,0.00022641,2]
[388640508,1759287037093,-600.0,0.00022658,2]
[388640509,1759287037102,-150.0,0.0002266,4]
[388640510,1759287037111,-152.58337236,0.0002266,4]
[388640511,1759287037119,-150.00000001,0.0002266,4]
[388640512,1759287037129,-400.33652254,0.00022662,2]
[388640513,1759287037138,-150.0,0.00022684,2]
[388640514,1759287037147,-414.27162897,0.00022788,2]
[388640515,1759287037162,-1000.0,0.000228,2]
[388640516,1759287037171,-485.87413275,0.00022891,2]
[388640517,1759287037180,-557.47663652,0.00022994,2]
[388640518,1759287037189,-170.0,0.00023014,7]
[388640519,1759287037199,-363.0,0.00023014,7]
[388640520,1759287037208,-4113.0,0.00023021,2]
[388640521,1759287037217,-255.0,0.00023032,2]
[388640522,1759287037227,-2313.18,0.00023073,2]
[388640523,1759287037236,-167.75,0.00023073,2]
[388640524,1759287037245,-629.07914029,0.00023098,2]
[388640525,1759287037255,-6926.00594018,0.000232,2]
[388640526,1759287037264,-239.84119403,0.000232,2]
[388640527,1759287037274,-500.0,0.000232,2]
[388640528,1759287037284,-322.6107,0.000232,2]
[388640529,1759287037293,-500.0,0.000232,2]
[388640530,1759287037303,-500.0,0.000232,2]
[388640531,1759287037312,-500.0,0.000232,2]
[388640532,1759287037322,-500.0,0.000232,2]
[388640533,1759287037331,-500.0,0.000232,2]
[388640534,1759287037341,-500.0,0.000232,2]
[388640535,1759287037350,-500.0,0.000232,2]
[388640536,1759287037359,-500.0,0.000232,2]
[388640537,1759287037368,-500.0,0.000232,2]
[388640538,1759287037378,-500.0,0.000232,2]
[388640539,1759287037388,-500.0,0.000232,2]
[388640540,1759287037398,-500.0,0.000232,2]
[388640541,1759287037407,-700.68164407,0.00023201,2]
[388640542,1759287037416,-600.0,0.00023206,2]
[388640543,1759287037426,-240.0,0.00023259,2]
[388640544,1759287037435,-772.28414784,0.00023304,2]
[388640545,1759287037445,-178.05,0.00023375,2]
[388640546,1759287037454,-6217.0876167,0.00023381,2]
[388640547,1759287037463,-325.0,0.000234,2]
[388640548,1759287037473,-843.88665161,0.00023407,2]
[388640549,1759287037483,-915.48915539,0.00023511,2]
[388640550,1759287037492,-700.0,0.00023542,2]
[388640551,1759287037502,-1000.0,0.000236,7]
[388640552,1759287037511,-160.0,0.000236,5]
[388640553,1759287037521,-160.0,0.000236,5]
[388640554,1759287037531,-987.09165916,0.00023614,2]
[388640555,1759287037540,-12655.47902661,0.00023654,2]
[388640556,1759287037549,-609.56083232,0.00023654,2]
[388640557,1759287037559,-1058.69416294,0.00023717,2]
[388640558,1759287037568,-280.42362626,0.00023727,2]
[388640559,1759287037577,-151.0,0.00023732,7]
[388640560,1759287037587,-176.26975879,0.00023734,2]
[388640561,1759287037596,-407.86796468,0.00023734,2]
[388640562,1759287037605,-250.6690803,0.00023734,2]
[388640563,1759287037615,-212.73224253,0.00023734,2]
[388640564,1759287037624,-169.55251522,0.00023734,2]
[388640565,1759287037633,-37690.0,0.00023735,2]
[388640566,1759287037643,-600.0,0.00023754,2]
[388640567,1759287037652,-12655.47902655,0.00023785,2]
[388640568,1759287037661,-1130.29666671,0.00023821,2]
[388640569,1759287037671,-577.18,0.00023836,2]
[388640570,1759287037682,-301.12,0.00023893,2]
[388640571,1759287037692,-1195.54,0.00023893,2]
[388640572,1759287037703,-354.55,0.00023893,2]
[388640573,1759287037713,-6021.06994115,0.00023899,2]
[388640574,1759287037723,-12655.47902655,0.00023916,2]
[388640575,1759287037732,-1201.89917048,0.00023924,2]
[388640576,1759287037742,-151.0,0.00023997,7]
[388640577,1759287037751,-26028.45958817,0.00023999,2]
[388640579,1759287038479,-577.91966437,0.00023999,2]
[388640580,1759287038491,-710.6784269,0.00023999,2]
[388640581,1759287038503,-2749.09183139,0.00023999,2]
[388640582,1759287038523,-541.57588977,0.00023999,2]
[388640583,1759287038534,-716.26569835,0.00023999,2]
[388640584,1759287038546,-4784.38693831,0.00023999,2]
[388640585,1759287038582,-768.57941827,0.00023999,2]
[388640586,1759287038593,-89648.58860829,0.00023999,2]
[388640587,1759287038603,-33325.1952,0.00023999,2]
[388640588,1759287038613,-1000.0,0.00023999,2]
[388640589,1759287038623,-14139.8108461,0.00024,2]
[388640590,1759287038632,-30560.21080048,0.00024,4]
[388640591,1759287038644,-290.447,0.00024,5]
[388640592,1759287038653,-1907.401,0.00024,5]
[388640593,1759287038663,-6021.06994106,0.00024003,2]
[388640594,1759287038672,-150.0,0.00024011,2]
[388640595,1759287038681,-1273.50167426,0.00024027,2]
[388640596,1759287038690,-12655.47902655,0.00024046,2]
[388640597,1759287038700,-240.0,0.00024071,2]
[388640598,1759287038709,-1345.10417803,0.00024131,2]
[388640599,1759287038719,-271.57729479,0.00024154,2]
[388640600,1759287038728,-170.0,0.00024164,7]
[388640601,1759287038739,-365.0,0.00024164,7]
[388640602,1759287038748,-1000.0,0.00024173,2]
[388640603,1759287038758,-12655.47902655,0.00024177,2]
[388640604,1759287038767,-869.01818911,0.00024207,2]
[388640605,1759287038776,-1416.7066818,0.00024234,2]
[388640606,1759287038786,-4919.9513152,0.00024254,2]
[388640607,1759287038796,-694.56809405,0.00024302,2]
[388640608,1759287038806,-12655.47902655,0.00024308,2]
[388640609,1759287038816,-1488.30918558,0.00024337,2]
[388640610,1759287038825,-1103.0427,0.0002438,2]
[388640611,1759287038835,-271.57729476,0.00024381,2]
[388640612,1759287038845,-12655.47902655,0.00024439,2]
[388640613,1759287038856,-1559.91168935,0.0002444,2]
[388640614,1759287038866,-211.0554073,0.00024453,2]
[388640615,1759287038876,-31302.03,0.0002448,2]
[388640616,1759287038887,-151.0,0.0002448,2]
[388640617,1759287038897,-151.0,0.0002448,2]
[388640618,1759287038907,-151.0,0.0002448,2]
[388640619,1759287038917,-151.0,0.0002448,2]
[388640620,1759287038927,-151.0,0.0002448,2]
[388640621,1759287038936,-151.0,0.0002448,2]
[388640622,1759287038946,-151.0,0.0002448,2]
[388640623,1759287038955,-151.0,0.0002448,2]
[388640624,1759287038964,-151.0,0.0002448,2]
[388640625,1759287038974,-151.0,0.0002448,2]
[388640626,1759287038984,-151.0,0.0002448,2]
[388640627,1759287038994,-151.0,0.0002448,2]
[388640628,1759287039003,-151.0,0.0002448,2]
[388640629,1759287039013,-151.0,0.0002448,2]
[388640630,1759287039023,-151.0,0.0002448,2]
[388640631,1759287039033,-151.0,0.0002448,2]
[388640632,1759287039042,-151.0,0.0002448,2]
[388640633,1759287039051,-151.0,0.0002448,2]
[388640634,1759287039062,-151.0,0.0002448,2]
[388640635,1759287039071,-151.0,0.0002448,2]
[388640636,1759287039081,-151.0,0.0002448,2]
[388640637,1759287039091,-151.0,0.0002448,2]
[388640638,1759287039100,-151.0,0.0002448,2]
[388640639,1759287039110,-151.0,0.0002448,2]
[388640640,1759287039119,-151.0,0.0002448,2]
[388640641,1759287039129,-168.796453,0.0002448,2]
[388640642,1759287039139,-527.56424,0.00024487,2]
[388640643,1759287039149,-200.0,0.00024496,2]
[388640644,1759287039161,-564.0,0.00024525,2]
[388640645,1759287039170,-1631.51419312,0.00024544,2]
[388640646,1759287039179,-29998.4343,0.00024556,2]
[388640647,1759287039189,-5000.0,0.00024557,2]
[388640648,1759287039199,-1286.8272968,0.00024557,2]
[388640649,1759287039208,-545.92328754,0.00024557,2]
[388640650,1759287039218,-160.64141638,0.00024557,2]
[388640651,1759287039228,-334.5472959,0.00024569,2]
[388640652,1759287039239,-12655.47902655,0.00024569,2]
[388640653,1759287039249,-319.0,0.0002458,2]
[388640654,1759287039259,-500.0,0.00024596,2]
[388640655,1759287039268,-150.0,0.00024596,2]
[388640656,1759287039278,-572.0,0.00024596,2]
[388640657,1759287039287,-150.0,0.00024596,2]
[388640658,1759287039297,-150.0,0.00024596,2]
[388640659,1759287039307,-150.0,0.00024596,2]
[388640660,1759287039318,-201.53948938,0.00024596,2]
[388640661,1759287039328,-160.0,0.000246,7]
[388640662,1759287039339,-160.0,0.000246,7]
[388640663,1759287039348,-271.57729476,0.00024609,2]
[388640664,1759287039357,-527.56424,0.0002462,2]
[388640665,1759287039367,-389.67003595,0.00024631,2]
[388640666,1759287039377,-700.0,0.00024638,2]
[388640667,1759287039387,-168.0,0.00024642,2]
[388640668,1759287039397,-207.29005882,0.00024647,2]
[388640669,1759287039407,-1703.1166969,0.00024647,2]
[388640670,1759287039417,-151.0,0.00024653,7]
[388640671,1759287039427,-151.0,0.00024654,7]
[388640672,1759287039436,-165.122,0.00024656,2]
[388640673,1759287039446,-300.0,0.00024656,2]
[388640674,1759287039456,-679.68483121,0.00024656,2]
[388640675,1759287039466,-107380.20139887,0.00024657,2]
[388640676,1759287039475,-171.91441013,0.00024657,2]
[388640677,1759287039484,-527.65,0.00024657,2]
[388640678,1759287039493,-2025.01,0.00024657,2]
[388640679,1759287039502,-500.0,0.00024657,2]
[388640680,1759287039512,-735.33,0.00024657,2]
[388640681,1759287039521,-500.0,0.00024657,2]
[388640682,1759287039531,-500.0,0.00024657,2]
[388640683,1759287039541,-479.94840101,0.00024657,2]
[388640684,1759287039551,-500.0,0.00024657,2]
[388640685,1759287039560,-500.0,0.00024657,2]
[388640686,1759287039569,-500.0,0.00024657,2]
[388640687,1759287039579,-502.31833068,0.00024657,2]
[388640688,1759287039588,-500.0,0.00024657,2]
[388640689,1759287039597,-500.0,0.00024657,2]
[388640690,1759287039607,-875.46,0.00024657,2]
[388640691,1759287039616,-611.81,0.00024657,2]
[388640692,1759287039625,-500.0,0.00024657,2]
[388640693,1759287039635,-500.0,0.00024657,2]
[388640694,1759287039645,-500.0,0.00024657,2]
[388640695,1759287039654,-500.0,0.00024657,2]
[388640696,1759287039664,-500.0,0.00024657,2]
[388640697,1759287039673,-500.0,0.00024657,2]
[388640698,1759287039682,-500.0,0.00024657,2]
[388640699,1759287039691,-500.0,0.00024657,2]
[388640700,1759287039701,-2123.71,0.00024657,2]
[388640701,1759287039710,-500.0,0.00024657,2]
[388640702,1759287039720,-1013.18,0.00024657,2]
[388640703,1759287039729,-869.23,0.00024657,2]
[388640704,1759287039739,-500.0,0.00024657,2]
[388640705,1759287039748,-500.0,0.00024657,2]
[388640706,1759287039759,-500.0,0.00024657,2]
[388640707,1759287039768,-500.0,0.00024657,2]
[388640708,1759287039778,-500.0,0.00024657,2]
[388640709,1759287039787,-500.0,0.00024657,2]
[388640710,1759287039797,-721.06,0.00024657,2]
[388640711,1759287039808,-500.0,0.00024657,2]
[388640712,1759287039819,-500.0,0.00024657,2]
[388640713,1759287039830,-500.0,0.00024657,2]
[388640714,1759287039840,-543.34422694,0.00024657,2]
[388640715,1759287039850,-500.0,0.00024657,2]
[388640716,1759287039860,-488.13148452,0.00024657,2]
[388640717,1759287039871,-500.0,0.00024657,2]
[388640718,1759287039882,-500.0,0.00024657,2]
[388640719,1759287039891,-500.0,0.00024657,2]
[388640720,1759287039902,-500.0,0.00024657,2]
[388640721,1759287039911,-500.0,0.00024657,2]
[388640722,1759287039920,-500.0,0.00024657,2]
[388640723,1759287039931,-500.0,0.00024657,2]
[388640724,1759287039941,-500.0,0.00024657,2]
[388640725,1759287039950,-500.0,0.00024657,2]
[388640726,1759287039961,-500.0,0.00024657,2]
[388640727,1759287039971,-500.0,0.00024657,2]
[388640728,1759287039982,-500.0,0.00024657,2]
[388640729,1759287039993,-503.64005968,0.00024657,2]
[388640730,1759287040002,-500.0,0.00024657,2]
[388640731,1759287040011,-521.39438253,0.00024657,2]
[388640732,1759287040020,-500.0,0.00024657,2]
[388640733,1759287040030,-500.0,0.00024657,2]
[388640734,1759287040039,-1336.39,0.00024657,2]
[388640735,1759287040050,-500.0,0.00024657,2]
[388640736,1759287040060,-500.0,0.00024657,2]
[388640737,1759287040070,-606.19056584,0.00024657,2]
[388640738,1759287040079,-358.46713458,0.00024657,2]
[388640739,1759287040088,-500.0,0.00024657,2]
[388640740,1759287040098,-500.0,0.00024657,2]
[388640741,1759287040109,-548.17921619,0.00024657,2]
[388640743,1759287040120,-500.0,0.00024657,2]
[388640744,1759287040129,-500.0,0.00024657,2]
[388640745,1759287040140,-500.0,0.00024657,2]
[388640746,1759287040151,-500.0,0.00024657,2]
[388640747,1759287040164,-500.55592082,0.00024657,2]
[388640748,1759287040174,-556.32,0.00024657,2]
[388640749,1759287040183,-500.0,0.00024657,2]
[388640750,1759287040192,-500.0,0.00024657,2]
[388640751,1759287040202,-1005.5,0.00024657,2]
[388640752,1759287040212,-500.0,0.00024657,2]
[388640753,1759287040221,-621.08,0.00024657,2]
[388640754,1759287040234,-201.6980087,0.00024657,2]
[388640755,1759287040245,-501.65548557,0.00024657,2]
[388640756,1759287040254,-531.45,0.00024657,2]
[388640757,1759287040263,-500.0,0.00024657,2]
[388640758,1759287040273,-500.0,0.00024657,2]
[388640759,1759287040282,-495.03847732,0.00024657,2]
[388640760,1759287040292,-500.0,0.00024657,2]
[388640761,1759287040301,-500.0,0.00024657,2]
[388640762,1759287040310,-911.33,0.00024657,2]
[388640763,1759287040319,-500.0,0.00024657,2]
[388640764,1759287040329,-500.0,0.00024657,2]
[388640765,1759287040338,-500.0,0.00024657,2]
[388640766,1759287040348,-500.0,0.00024657,2]
[388640767,1759287040358,-500.0,0.00024657,2]
[388640768,1759287040368,-500.0,0.00024657,2]
[388640769,1759287040377,-2409.05,0.00024657,2]
[388640770,1759287040386,-500.0,0.00024657,2]
[388640771,1759287040397,-500.0,0.00024657,2]
[388640772,1759287040406,-500.0,0.00024657,2]
[388640773,1759287040416,-500.0,0.00024657,2]
[388640774,1759287040425,-500.0,0.00024657,2]
[388640775,1759287040435,-500.0,0.00024657,2]
[388640776,1759287040444,-500.0,0.00024657,2]
[388640777,1759287040453,-500.0,0.00024657,2]
[388640778,1759287040463,-500.0,0.00024657,2]
[388640779,1759287040473,-500.0,0.00024657,2]
[388640780,1759287040483,-500.0,0.00024657,2]
[388640781,1759287040494,-500.0,0.00024657,2]
[388640782,1759287040503,-541.51,0.00024657,2]
[388640783,1759287040513,-500.0,0.00024657,2]
[388640784,1759287040522,-500.0,0.00024657,2]
[388640785,1759287040531,-500.0,0.00024657,2]
[388640786,1759287040541,-500.0,0.00024657,2]
[388640787,1759287040551,-500.0,0.00024657,2]
[388640788,1759287040560,-500.0,0.00024657,2]
[388640789,1759287040570,-500.0,0.00024657,2]
[388640790,1759287040580,-531.33,0.00024657,2]
[388640791,1759287040591,-383.95879676,0.00024657,2]
[388640792,1759287040601,-500.0,0.00024657,2]
[388640793,1759287040612,-500.0,0.00024657,2]
[388640794,1759287040623,-500.0,0.00024657,2]
[388640795,1759287040634,-500.0,0.00024657,2]
[388640796,1759287040645,-500.0,0.00024657,2]
[388640797,1759287040656,-500.0,0.00024657,2]
[388640798,1759287040668,-500.0,0.00024657,2]
[388640799,1759287040679,-500.0,0.00024657,2]
[388640800,1759287040689,-500.0,0.00024657,2]
[388640801,1759287040700,-500.0,0.00024657,2]
[388640802,1759287040711,-500.0,0.00024657,2]
[388640803,1759287040722,-500.0,0.00024657,2]
[388640804,1759287040734,-500.0,0.00024657,2]
[388640805,1759287040744,-500.0,0.00024657,2]
[388640806,1759287040755,-500.0,0.00024657,2]
[388640807,1759287040767,-500.0,0.00024657,2]
[388640808,1759287040778,-500.0,0.00024657,2]
[388640809,1759287040789,-500.0,0.00024657,2]
[388640810,1759287040800,-500.0,0.00024657,2]
[388640811,1759287040811,-500.0,0.00024657,2]
[388640812,1759287040822,-500.0,0.00024657,2]
[388640813,1759287040833,-501.57359147,0.00024657,2]
[388640814,1759287040843,-500.0,0.00024657,2]
[388640815,1759287040854,-500.0,0.00024657,2]
[388640816,1759287040864,-584.00811437,0.00024657,2]
[388640817,1759287040875,-1112.69,0.00024657,2]
[388640818,1759287040884,-500.0,0.00024657,2]
[388640819,1759287040895,-500.0,0.00024657,2]
[388640820,1759287040905,-2325.07,0.00024657,2]
[388640821,1759287040915,-1194.8,0.00024657,2]
[388640822,1759287040926,-500.0,0.00024657,2]
[388640823,1759287040936,-500.0,0.00024657,2]
[388640824,1759287040946,-500.0,0.00024657,2]
[388640825,1759287040956,-500.0,0.00024657,2]
[388640826,1759287040966,-1221.92,0.00024657,2]
[388640827,1759287040977,-500.0,0.00024657,2]
[388640828,1759287040987,-500.0,0.00024657,2]
[388640829,1759287040997,-1432.57,0.00024657,2]
[388640830,1759287041008,-500.0,0.00024657,2]
[388640831,1759287041018,-817.34,0.00024657,2]
[388640832,1759287041028,-931.33,0.00024657,2]
[388640833,1759287041040,-525.25,0.00024657,2]
[388640834,1759287041052,-500.0,0.00024657,2]
[388640835,1759287041062,-500.0,0.00024657,2]
[388640836,1759287041073,-295.60381638,0.00024657,2]
[388640837,1759287041083,-500.0,0.00024657,2]
[388640838,1759287041093,-500.0,0.00024657,2]
[388640839,1759287041103,-151.0,0.00024657,7]
[388640840,1759287041113,-500.0,0.00024657,2]
[388640841,1759287041123,-500.0,0.00024657,2]
[388640842,1759287041134,-923.56,0.00024657,2]
[388640843,1759287041145,-500.0,0.00024657,2]
[388640844,1759287041155,-940.57,0.00024657,2]
[388640845,1759287041171,-1006.59,0.00024657,2]
[388640846,1759287041181,-615.06,0.00024657,2]
[388640847,1759287041192,-500.0,0.00024657,2]
[388640848,1759287041203,-500.0,0.00024657,2]
[388640849,1759287041213,-500.0,0.00024657,2]
[388640850,1759287041222,-631.2,0.00024657,2]
[388640851,1759287041232,-500.0,0.00024657,2]
[388640852,1759287041242,-500.0,0.00024657,2]
[388640853,1759287041253,-500.0,0.00024657,2]
[388640854,1759287041262,-500.0,0.00024657,2]
[388640855,1759287041272,-500.0,0.00024657,2]
[388640856,1759287041281,-504.34,0.00024657,2]
[388640857,1759287041290,-980.11,0.00024657,2]
[388640858,1759287041300,-500.0,0.00024657,2]
[388640859,1759287041310,-1394.15,0.00024657,2]
[388640860,1759287041320,-500.0,0.00024657,2]
[388640861,1759287041330,-500.0,0.00024657,2]
[388640862,1759287041340,-500.0,0.00024657,2]
[388640863,1759287041351,-500.0,0.00024657,2]
[388640864,1759287041361,-500.0,0.00024657,2]
[388640865,1759287041371,-500.0,0.00024657,2]
[388640866,1759287041382,-500.0,0.00024657,2]
[388640867,1759287041392,-2158.93,0.00024657,2]
[388640868,1759287041403,-500.0,0.00024657,2]
[388640869,1759287041414,-500.0,0.00024657,2]
[388640870,1759287041425,-500.0,0.00024657,2]
[388640871,1759287041436,-500.0,0.00024657,2]
[388640872,1759287041447,-522.0,0.00024657,2]
[388640873,1759287041459,-500.0,0.00024657,2]
[388640874,1759287041470,-500.0,0.00024657,2]
[388640875,1759287041481,-500.0,0.00024657,2]
[388640876,1759287041493,-1089.8,0.00024657,2]
[388640877,1759287041505,-500.0,0.00024657,2]
[388640878,1759287041516,-500.0,0.00024657,2]
[388640879,1759287041528,-500.0,0.00024657,2]
[388640880,1759287041540,-500.0,0.00024657,2]
[388640881,1759287041553,-618.24,0.00024657,2]
[388640882,1759287041568,-1518.11,0.00024657,2]
[388640883,1759287041582,-500.0,0.00024657,2]
[388640884,1759287041593,-500.0,0.00024657,2]
[388640885,1759287041605,-500.0,0.00024657,2]
[388640886,1759287041617,-930.87,0.00024657,2]
[388640887,1759287041627,-500.0,0.00024657,2]
[388640888,1759287041638,-500.0,0.00024657,2]
[388640889,1759287041648,-500.0,0.00024657,2]
[388640890,1759287041658,-500.0,0.00024657,2]
[388640891,1759287041668,-572.68,0.00024657,2]
[388640892,1759287041679,-500.0,0.00024657,2]
[388640893,1759287041691,-151.0,0.00024657,7]
[388640894,1759287041702,-299.710956,0.00024657,7]
[388640895,1759287041713,-1338.63,0.00024657,2]
[388640896,1759287041724,-500.0,0.00024657,2]
[388640897,1759287041735,-1086.17,0.00024657,2]
[388640898,1759287041745,-500.0,0.00024657,2]
[388640899,1759287041756,-923.96,0.00024657,2]
[388640900,1759287041766,-1803.52,0.00024657,2]
[388640901,1759287041777,-500.0,0.00024657,2]
[388640902,1759287041788,-600.7,0.00024657,2]
[388640903,1759287041799,-500.0,0.00024657,2]
[388640904,1759287041809,-582.57,0.00024657,2]
[388640905,1759287041820,-516.17,0.00024657,2]
[388640906,1759287041832,-590.06088714,0.00024657,2]
[388640907,1759287041843,-500.0,0.00024657,2]
[388640908,1759287041853,-500.0,0.00024657,2]
[388640909,1759287041864,-500.0,0.00024657,2]
[388640910,1759287041875,-679.6,0.00024657,2]
[388640911,1759287041887,-500.0,0.00024657,2]
[388640912,1759287041898,-500.0,0.00024657,2]
[388640913,1759287041908,-595.15,0.00024657,2]
[388640914,1759287041919,-328.868233,0.00024657,2]
[388640915,1759287041931,-1656.47,0.00024657,2]
[388640916,1759287041942,-578.76,0.00024657,2]
[388640917,1759287041953,-550.67,0.00024657,2]
[388640918,1759287041964,-500.0,0.00024657,2]
[388640919,1759287041975,-500.0,0.00024657,2]
[388640920,1759287041986,-500.0,0.00024657,2]
[388640921,1759287041996,-4177.075954,0.00024657,2]
[388640922,1759287042007,-500.0,0.00024657,2]
[388640923,1759287042019,-500.0,0.00024657,2]
[388640924,1759287042029,-733.16,0.00024657,2]
[388640925,1759287042040,-2106.028622,0.00024657,2]
[388640926,1759287042051,-500.0,0.00024657,2]
[388640927,1759287042061,-500.0,0.00024657,2]
[388640928,1759287042071,-542.29,0.00024657,2]
[388640929,1759287042082,-1285.86,0.00024657,2]
[388640930,1759287042092,-500.0,0.00024657,2]
[388640931,1759287042103,-500.0,0.00024657,2]
[388640932,1759287042113,-500.0,0.00024657,2]
[388640933,1759287042124,-506.20902365,0.00024657,2]
[388640934,1759287042134,-979.86,0.00024657,2]
[388640935,1759287042146,-500.0,0.00024657,2]
[388640936,1759287042157,-539.71148562,0.00024657,2]
[388640937,1759287042170,-500.0,0.00024657,2]
[388640938,1759287042180,-500.0,0.00024657,2]
[388640939,1759287042191,-4715.61216,0.00024657,2]
[388640940,1759287042202,-500.0,0.00024657,2]
[388640941,1759287042213,-500.0,0.00024657,2]
[388640942,1759287042223,-500.0,0.00024657,2]
[388640943,1759287042234,-500.0,0.00024657,2]
[388640944,1759287042245,-500.0,0.00024657,2]
[388640945,1759287042255,-151.047984,0.00024657,2]
[388640946,1759287042265,-2509.59,0.00024657,2]
[388640947,1759287042275,-740.5,0.00024657,2]
[388640948,1759287042286,-500.0,0.00024657,2]
[388640949,1759287042296,-500.0,0.00024657,2]
[388640950,1759287042306,-500.0,0.00024657,2]
[388640951,1759287042316,-500.0,0.00024657,2]
[388640952,1759287042326,-2248.46,0.00024657,2]
[388640953,1759287042336,-622.13,0.00024657,2]
[388640954,1759287042347,-500.0,0.00024657,2]
[388640955,1759287042356,-659.44,0.00024657,2]
[388640956,1759287042367,-1571.63,0.00024657,2]
[388640957,1759287042376,-518.28124229,0.00024657,2]
[388640958,1759287042386,-500.0,0.00024657,2]
[388640959,1759287042396,-598.32,0.00024657,2]
[388640960,1759287042406,-1195.41,0.00024657,2]
[388640961,1759287042415,-500.0,0.00024657,2]
[388640962,1759287042425,-780.96,0.00024657,2]
[388640963,1759287042435,-500.0,0.00024657,2]
[388640964,1759287042444,-500.0,0.00024657,2]
[388640965,1759287042454,-502.59671812,0.00024657,2]
[388640966,1759287042464,-622.1,0.00024657,2]
[388640967,1759287042473,-540.22,0.00024657,2]
[388640968,1759287042483,-627.13,0.00024657,2]
[388640969,1759287042493,-500.0,0.00024657,2]
[388640970,1759287042503,-1051.13,0.00024657,2]
[388640971,1759287042513,-500.0,0.00024657,2]
[388640972,1759287042523,-624.21,0.00024657,2]
[388640973,1759287042533,-3079.09,0.00024657,2]
[388640974,1759287042543,-2283.34,0.00024657,2]
[388640975,1759287042553,-500.50772066,0.00024657,2]
[388640976,1759287042563,-501.66918984,0.00024657,2]
[388640977,1759287042573,-500.0,0.00024657,2]
[388640978,1759287042584,-1508.04,0.00024657,2]
[388640979,1759287042596,-2166.57,0.00024657,2]
[388640980,1759287042801,-855.77,0.00024657,2]
[388640981,1759287042817,-500.0,0.00024657,2]
[388640982,1759287042828,-500.0,0.00024657,2]
[388640983,1759287042841,-508.74,0.00024657,2]
[388640984,1759287042853,-2160.82,0.00024657,2]